Cogmind - Beta 13 @@@ ROGUE MODE // 2024.04.05 @ 06:08:01 Player: Aklangi Result: Destroyed by D-53 Grenadier with Mini Grenade Launcher Performance ------------- Evolutions (0) 0 Regions Visited (2) 400 Robots Destroyed (19) 95 Value Destroyed (509) 509 Prototype IDs (2) 40 Alien Tech Used (0) 0 Bonus (0) 0 TOTAL SCORE: 1044 Bonus ------- None Cogmind --------- Core Integrity 0/250 Matter 300/300 Energy 83/100 System Corruption 1% Temperature Cool (0) Movement Core (50) Location -10/Mines Parts ------- > --- POWER (1) -------- (None) > --- PROPULSION (2) --- (None) > --- UTILITY (2) ------ (None) > --- WEAPON (2) ------- (None) > --- INVENTORY (5) ---- Medium Storage Unit Light Armor Plating Medium Laser Hammer Mining Claw Peak State ------------ > --- POWER ------------ Light Ion Engine > --- PROPULSION ------- Light Treads Light Treads > --- UTILITY ---------- Large Storage Unit Light Armor Plating > --- WEAPON ----------- Medium Laser Particle Gun > --- INVENTORY -------- Ion Engine Small Storage Unit Medium Storage Unit Light Armor Plating Medium Laser Hammer Mining Claw [Rating: 8] Favorites ----------- Power Light Ion Engine Engine Light Ion Engine Propulsion Light Treads Treads Light Treads Utility Large Storage Unit Storage Large Storage Unit Processor Transport Network Coupler Protection Light Armor Plating Weapon Medium Laser Energy Gun Medium Laser Ballistic Gun Assault Rifle Impact Weapon Hammer Build | -11 -10 -10 ------- Run | Yrd Mat Min Slots Evolved . | . . . Power . | . . . Propulsion . | . . . Utility . | . . . Weapon . | . . . Parts Attached 29 | 6 21 2 Power 4 | 1 3 . Engine 4 | 1 3 . Core . | . . . Reactor . | . . . Propulsion 7 | 2 5 . Treads 7 | 2 5 . Leg . | . . . Wheel . | . . . Hover . | . . . Flight . | . . . Utility 8 | 1 6 1 Device . | . . . Storage 4 | 1 2 1 Processor 1 | . 1 . Hackware . | . . . Protection 3 | . 3 . Artifact . | . . . Weapon 10 | 2 7 1 Energy Gun 8 | 1 6 1 Energy Cannon . | . . . Ballistic Gun 1 | 1 . . Ballistic Cannon . | . . . Launcher . | . . . Special Weapon . | . . . Impact Weapon 1 | . 1 . Slashing Weapon . | . . . Piercing Weapon . | . . . Special Melee Weapon . | . . . Unidentified Prototypes . | . . . Parts Lost 6 | . 3 3 Power . | . . . Propulsion 2 | . 2 . Utility 1 | . . 1 Weapon 3 | . 1 2 Highest Loss Streak 2 | . 2 2 To Critical Strikes . | . . . Average Slot Usage (%) 93 | . 93 93 Engine 13 | . 13 14 Treads 23 | . 23 24 Storage 14 | . 14 14 Processor 1 | . 2 . Protection 11 | . 10 14 Energy Gun 19 | . 18 26 Ballistic Gun 8 | . 8 . Naked Turns 1 | . . 1 Heaviest Build 31 | 12 30 31 Greatest Support 40 | 40 40 40 Greatest Overweight (x) 9 | 2 9 . Average Overweight (x) . | . . . Largest Inventory Capacity 15 | 8 15 15 Average Capacity 14 | 6 14 14 Most Carried 8 | 2 8 8 Average Carried 5 | 1 6 7 Final Capacity 15 | 8 15 5 Final Carried 7 | 2 7 5 Class Distribution -------------------- 100% | Mutant Dominant Class ---------------- Mutant | -10/Materials Mutant | -10/Mines Resources | -11 -10 -10 ----------- Run | Yrd Mat Min Matter Collected 626 | 138 478 10 Remotely . | . . . Salvage Created 740 | . 698 42 Parts 40 | . 39 1 Haulers Intercepted 2 | . 2 . Recyclers Shooed . | . . . Parts Field Recycled . | . . . Retrieved Matter . | . . . Parts Self-Destructed . | . . . Prevented . | . . . Kills | -11 -10 -10 ------- Run | Yrd Mat Min Combat Hostiles Destroyed 12 | . 11 1 Guns 12 | . 11 1 Classes Destroyed 4 | . 4 . Worker 3 | . 3 . Hauler 2 | . 2 . Watcher 2 | . 2 . Grunt 12 | . 11 1 Best Kill Streak 4 | . 4 1 Combat Bots Only 3 | . 3 1 Max Kills in Single Turn 2 | . 2 1 Gunslinging . | . . . Exploded . | . . . Melee . | . . . Uniques/NPCs Destroyed . | . . . Combat | -11 -10 -10 -------- Run | Yrd Mat Min Hostile Shots Fired 107 | . 86 21 Missed 30 | . 27 3 Damage Taken 1150 | . 752 398 Core 270 | . 160 110 Absorbed by Shields . | . . . Regen/Repaired (Parts) 51 | . 51 . Core Remaining (%) 100 | 100 . . Volleys Fired 69 | . 63 6 Largest 2 | . 2 2 Hottest 90 | . 90 90 Shots Fired 134 | . 124 10 Gun 134 | . 124 10 Cannon . | . . . Launcher . | . . . Special . | . . . Kinetic 51 | . 51 . Thermal 69 | . 63 6 Explosive . | . . . Electromagnetic 14 | . 10 4 Robot Hit Streak 6 | . 6 4 Robot Miss Streak 4 | . 4 2 Penetration Max . | . . . Secondary Targets 1 | . 1 . Max Gunslinging Chain 1 | . 1 . Shots Hit Robots 77 | . 70 7 Core Hits 34 | . 30 4 Critical Kills . | . . . Critical Parts Destroyed . | . . . Critical Strikes 6 | . 5 1 Burn 6 | . 5 1 Melee Attacks . | . . . Impact . | . . . Slashing . | . . . Piercing . | . . . Sneak Attacks . | . . . Combat Hostiles . | . . . Follow-up Attacks . | . . . Damage Inflicted 1130 | 7 1023 100 Guns 1068 | . 968 100 Cannons . | . . . Explosions . | . . . Melee . | . . . Ramming 62 | 7 55 . Kinetic 410 | . 410 . Thermal 542 | . 467 75 Explosive . | . . . Electromagnetic 116 | . 91 25 Impact . | . . . Slashing . | . . . Piercing . | . . . Highest Corruption 1 | . 1 1 Average Corruption 1 | . 1 1 Corruption Purged . | . . . Corruption Blocked . | . . . Overload Shots . | . . . Overflow Damage . | . . . Projectiles . | . . . Explosions . | . . . Melee . | . . . Knockbacks . | . . . Impact . | . . . Kinetic . | . . . Secondary . | . . . Self-Inflicted Damage . | . . . Shots . | . . . Rammed 10 | 4 6 . Targets Rammed 11 | 4 7 . Kicked . | . . . Crushed 1 | . 1 . Highest Temperature 371 | . 371 302 Average Temperature 117 | . 113 153 Received Heat Transfer 555 | . 441 114 Effects 4 | . 3 1 Shutdowns 1 | . 1 . Energy Bleed 1 | . 1 . Interference 1 | . . 1 Matter Decay 1 | . 1 . Siege Activations . | . . . Robots Corrupted . | . . . Combat Hostiles . | . . . Parts Fried . | . . . Impact Corruptions . | . . . Robots Melted . | . . . Combat Hostiles . | . . . Parts Melted 3 | . 2 1 Heat Transferred 2035 | . 1739 296 Parts Sabotaged . | . . . Parts Stolen . | . . . Parts Stripped . | . . . Power Chain Reactions . | . . . Alert | -11 -10 -10 ------- Run | Yrd Mat Min Peak Influence 152 | . 152 43 Initial 8 | . . 8 Average 64 | . 69 37 Maximum Alert Level . | . . . Low Security (%) 100 | 100 100 100 Level 1 . | . . . Level 2 . | . . . Level 3 . | . . . Level 4 . | . . . Level 5 . | . . . High Security . | . . . Max Security . | . . . Squads Dispatched 2 | . 2 . Investigation 1 | . 1 . Extermination . | . . . Reinforcement 1 | . 1 . Assault . | . . . Garrison . | . . . Intercept . | . . . Searches Triggered . | . . . Construction Impeded . | . . . Haulers Reinforced . | . . . Active Scanning Responses . | . . . Cargo Convoy Interrupts . | . . . Stealth | -11 -10 -10 --------- Run | Yrd Mat Min Distress Signals 1 | . 1 . Communications Jammed . | . . . Distress Signals . | . . . Times Spotted 28 | . 21 7 Peak Tracking Total 5 | . 4 5 Tactical Retreats 1 | . . 1 Traps | -11 -10 -10 ------- Run | Yrd Mat Min Traps Triggered 4 | . 4 . Indirectly . | . . . Trap Hack Attempts . | . . . Triggered . | . . . Disarmed . | . . . Reprogrammed . | . . . Reused . | . . . Traps Extracted . | . . . Installed . | . . . Triggered . | . . . Machines | -11 -10 -10 ---------- Run | Yrd Mat Min Machines Disabled 1 | . 1 . Max in Single Turn 1 | . 1 . Machines Repaired . | . . . Machines Dismantled . | . . . Machines Sabotaged . | . . . Overloaded Fab Kills . | . . . Hacking | -11 -10 -10 --------- Run | Yrd Mat Min Machines Accessed 5 | . 5 . Terminals 4 | . 4 . Fabricators . | . . . Repair Stations 1 | . 1 . Recycling Units . | . . . Scanalyzers . | . . . Garrison Access . | . . . Total Hacks 12 | . 12 . Successful 5 | . 5 . Failed 7 | . 7 . Catastrophic . | . . . Database Lockouts . | . . . Manual 3 | . 3 . Terminals 9 | . 9 . Fabricators . | . . . Repair Stations 3 | . 3 . Recycling Units . | . . . Scanalyzers . | . . . Garrison Access . | . . . Terminal Hacks 3 | . 3 . Prototype ID Bank 1 | . 1 . Branch Access Points 1 | . 1 . Emergency Access Points 1 | . 1 . Fabricator Hacks . | . . . Repair Station Hacks 2 | . 2 . Scan Component 1 | . 1 . Repair 1 | . 1 . Recycling Unit Hacks . | . . . Scanalyzer . | . . . Garrison Access Hacks . | . . . Unauthorized Hacks . | . . . Terminals . | . . . Fabricators . | . . . Repair Stations . | . . . Recycling Units . | . . . Scanalyzers . | . . . Garrison Access . | . . . Data Cores Recovered . | . . . Used . | . . . Hacking Detections 4 | . 4 . Full Trace Events 1 | . 1 . Feedback Events . | . . . Feedback Blocked . | . . . Robot Schematics Acquired . | . . . Robots Built . | . . . Authchips . | . . . Time . | . . . Total Robot Build Rating . | . . . Part Schematics Acquired . | . . . Parts Built . | . . . Authchips . | . . . Time . | . . . Total Part Build Rating . | . . . Parts Repaired 1 | . 1 . Time 26 | . 26 . Parts Recycled . | . . . Recycled Matter . | . . . Retrieved Matter . | . . . Retrieved Components . | . . . Parts Scanalyzed . | . . . Part Schematics Acquired . | . . . Parts Damaged . | . . . Bothacking | -11 -10 -10 ------------ Run | Yrd Mat Min Used RIF Installer . | . . . Robots Hacked . | . . . Non-combat . | . . . Combat . | . . . Robot Hacks Applied . | . . . Relay Couplers Released . | . . . Fabnet Peak Effective % . | . . . Robots Rewired . | . . . Allies Hacked . | . . . Hacks Repelled . | . . . Allies | -11 -10 -10 -------- Run | Yrd Mat Min Total Allies . | . . . Largest Group . | . . . Highest-Rated Group . | . . . Highest-Rated Ally . | . . . Total Orders . | . . . Ally Attacks . | . . . Total Damage . | . . . Kills . | . . . Allies Corrupted . | . . . Allies Melted . | . . . Intel | -11 -10 -10 ------- Run | Yrd Mat Min Robot Analysis Total . | . . . Derelict Logs Recovered . | . . . Drone Launches . | . . . Drone Recoveries . | . . . Exploration | -11 -10 -10 ------------- Run | Yrd Mat Min Turns Passed 1391 | 69 1253 69 Spaces Moved 632 | 37 564 31 Core 16 | 12 2 2 Treads 616 | 25 562 29 Legs . | . . . Wheels . | . . . Hover . | . . . Flight . | . . . Fastest Speed 50 | 50 160 50 Average Speed 172 | 141 175 152 Slowest Speed 500 | 160 500 160 Overloaded Moves . | . . . Propulsion Burnouts . | . . . Robots Hopped . | . . . Cave-ins Triggered . | . . . Exploration Rate (%) 36 | 5 90 15 Regions Visited 2 Branch Regions 1 Pre-discovered Areas . | . . . Known Exits Taken 1 | . 1 . Unknown Exits Taken 1 | 1 . . Scrap Searched . | . . . Spaces Dug . | . . . Terrain Destroyed . | . . . Melee . | . . . Projectile . | . . . AOE . | . . . Terrain Rammed . | . . . Walls Destroyed . | . . . Machines Disabled . | . . . Actions | -11 -10 -10 --------- Run | Yrd Mat Min Total 783 | 48 691 44 Wait 31 | . 31 . Move 630 | 36 563 31 Hop . | . . . Pick Up 5 | 2 3 . Fast Attach 20 | 6 13 1 Attach 2 | . 2 . Detach 2 | . 1 1 Swap 7 | . 6 1 Drop 6 | . 2 4 Fire 69 | . 63 6 Melee . | . . . Ram . | . . . Kick . | . . . Crush 11 | 4 7 . Escape Stasis . | . . . Rewire . | . . . Trap . | . . . Miscellaneous . | . . . Route ------- -11/Scrapyard -10/Materials (discovered 5 exits: [*Mat x3] / *Min x2) -10/Mines History --------- Turn | Location | Event 17 | -11/Scrapyard | Discovered new exit (range 15) 70 | -11/Scrapyard | Entered Materials 151 | -10/Materials | Discovered new exit (range 12) 319 | -10/Materials | Build established: Mutant 329 | -10/Materials | Discovered new exit (range 16) 546 | -10/Materials | Identified exit to Mines 597 | -10/Materials | Repaired Med. Laser 739 | -10/Materials | Discovered new exit (range 15) 857 | -10/Materials | Core integrity fell below 50% 1223 | -10/Materials | Discovered new exit (range 10) 1323 | -10/Materials | Entered Mines 1324 | -10/Mines | Assembled infested the area 1329 | -10/Mines | Assisted by a Guerilla fighting off Assembled 1336 | -10/Mines | Core integrity fell below 20% 1392 | -10/Mines | Destroyed by D-53 Grenadier with Mini Grenade Launcher Last Messages --------------- 01338_ HV Slug penetrates G-34 Mercenary. 01338_ G-34 Mercenary suffers critical hit (Destroy). 01338_ G-34 Mercenary destroyed. 01345_ Overheating: System interference. 01345_ Med. Laser temporarily disabled. 01346_ Acquired Particle Gun. 01347_ Acquired 10 matter. 01354_ HV Slug penetrates Wall. 01356_ as-54849 suffers critical hit (Destroy). 01356_ as-54849 destroyed. 01382_ as-41361 destroyed. 01385_ as-93253 destroyed. 01387_ The unstable cave ceiling collapses. 01389_ Dropped Lgt. Treads. 01390_ Dropped Particle Gun. 01390_ Lgt. Armor Plating destroyed. 01390_ Med. Laser destroyed. 01390_ Dropped Lgt. Ion Engine. 01391_ The unstable cave ceiling collapses. 01391_ Dropped Sml. Storage Unit. Map ----- +----------------------------------------------------+ | ??????????????????????????????????????????? | | ??????????????????????????????????????????? | | ??????????????????????????????????????????? | | ??????????????????????????????????????????? | | ??????????????????????????????????????????? | | ??????????????????????????????????????????? | | ??????????????????????????????????????????? | | ??????????????????????????????????????????? | | ??????????????????????????????????????????? | | ??????????????????????????????????????????? | | ??????????????????????????????????????????? | | ?????????????????????????????#????????????? | | ????????????????????????????# # ?????????? | | ???????????????????????????? % #???????? | | ???????????????????????????? % ????????? | | ???????????????????????????# ?????????? | | ?????????????????#####????? ?????????? | | ???????????????### # #####% =??????????? | | ???????????????# # !???????????? | | ???????????????# ????????????? | | ??????????????## # ????????????? | | ??????????? ## d ?????????????? | | ??????????? a #d ??????????????? | | ???????????? a ####???????????? | | ???????????????# ##??????????? | | ????????????????# # @* #??????????? | | ???????????#?????????# !# ##??????????? | | ??????????## ????????# =*! #???????????? | | ??????????#% #???????# [ #??????????? | | ???????????#%"######## #??????????? | | ???????????# ### ##?????????? | | ???????????###""### # # ###???????? | | ????????#######"### ## ### ##??????? | | ????????# % #" ## ### #??????? | | ????????# % ## ## #??????? | | ????????# = % ##### #??????? | | ????????# ####???# ##??????? | | ????????# % #??????# #???????? | | ????????# #??????## #???????? | | ????????# #????????# ##???????? | | ????????##########?????????#######????????? | | ??????????????????????????????????????????? | | ??????????????????????????????????????????? | | | | | | | | | | | | | | | +----------------------------------------------------+ Best States ------------- Heat Dissipation 25 Energy Generation 10 Energy Capacity 125 Matter Stores 300 Matter Capacity 300 Sight Range 16 Terrain Scan Density 10 Armor Coverage 150 Evasion (%) 40 Recoil Reduction 2 Item Schematics ----------------- None Robot Schematics ------------------ None Fabricated ------------ Nothing Alien Tech Used ----------------- None Achievements -------------- None Challenges ------------ None Game ------ Seed PotentialSurveybotMantle Manual? 0 Play Time 00:21:35 Cumulative 11.4 hours Start 2024.04.05 @ 05:23:16 End 2024.04.05 @ 06:08:01 Sessions 1 Manual Loads 0 Difficulty Rogue Special Mode None Game No. 25 Rogue 25 Adventurer 0 Explorer 0 Win Type - Total 0 Types 0/0/0/0/0/0/0/0/0 Lore% 18 Gallery% 26 Achievement% 24 Wizard Run 0 Options --------- Layout 0 ASCII 0 Keyboard 0 Movement Mouse Keybinds 0 Fullscreen 1 Font 18/SmallcapsGlow Map View 76x50 Zoom Use 8% Tactical HUD 1 Map Filters NONE Filters NONE Steam 1 RUN: 75d81622-5da3-4f1f-9507-3043a407add3